Cogmind - Beta 16.1 @@@ ROGUE MODE // 2026.02.18 @ 07:01:56 Player: Kosys Result: Destroyed by D-53 Grenadier with Mini Grenade Launcher Performance ------------- Evolutions (1) 500 Regions Visited (3) 600 Robots Destroyed (43) 215 Value Destroyed (872) 872 Prototype IDs (0) 0 Alien Tech Used (0) 0 Bonus (0) 0 TOTAL SCORE: 2187 Bonus ------- None Cogmind --------- Core Integrity 0/400 Matter 400/400 Energy 125/125 System Corruption 3% Temperature Cool (0) Movement Walking (400) Ox4 Location -9/Mines Parts ------- > --- POWER (1) -------- Light Ion Engine > --- PROPULSION (2) --- Aluminum Leg Aluminum Leg > --- UTILITY (4) ------ Huge Storage Unit Medium Matter Pod (fused) Transport Network Coupler Weapon Shielding > --- WEAPON (2) ------- Medium Laser Medium Laser > --- INVENTORY (25) --- Ion Engine Ion Engine Light Ion Engine Light Ion Engine Flight Unit Medium Laser Small Laser Peak State ------------ > --- POWER ------------ Ion Engine > --- PROPULSION ------- Light Treads Light Treads > --- UTILITY ---------- Heat Sink Small Matter Pod Medium Matter Pod Transport Network Coupler > --- WEAPON ----------- EMP Blaster EMP Blaster > --- INVENTORY -------- Ion Engine Medium Laser Medium Laser Medium Laser [Rating: 11] Favorites ----------- Power Ion Engine Engine Ion Engine Propulsion Light Treads Treads Light Treads Leg Aluminum Leg Wheel Wheel Flight Unit Flight Unit Utility Transport Network Coupler Device Heat Sink Storage Medium Matter Pod Processor Transport Network Coupler Protection Weapon Shielding Weapon Medium Laser Energy Gun Medium Laser Launcher EMP Blaster Special Weapon Mining Laser Build | -11 -10 -9 -9 ------- Run | Yrd Mat Mat Min Slots Evolved 2 | . . 2 . Power . | . . . . Propulsion . | . . . . Utility 2 | . . 2 . Weapon . | . . . . Parts Attached 30 | 10 12 2 6 Power 5 | 2 2 . 1 Engine 5 | 2 2 . 1 Core . | . . . . Reactor . | . . . . Propulsion 10 | 2 5 . 3 Treads 3 | . 3 . . Leg 2 | . . . 2 Wheel 2 | 2 . . . Hover . | . . . . Flight 3 | . 2 . 1 Utility 6 | 2 1 2 1 Device 1 | 1 . . . Storage 3 | 1 . 2 . Processor 1 | . 1 . . Hackware . | . . . . Protection 1 | . . . 1 Artifact . | . . . . Weapon 9 | 4 4 . 1 Energy Gun 5 | 2 2 . 1 Energy Cannon . | . . . . Ballistic Gun . | . . . . Ballistic Cannon . | . . . . Launcher 2 | . 2 . . Special Weapon 2 | 2 . . . Impact Weapon . | . . . . Slashing Weapon . | . . . . Piercing Weapon . | . . . . Special Melee Weapon . | . . . . Unidentified Prototypes . | . . . . Parts Lost 6 | . . 1 5 Power 1 | . . . 1 Propulsion 2 | . . . 2 Utility 1 | . . . 1 Weapon 2 | . . 1 1 Highest Loss Streak 4 | . . 1 4 To Critical Strikes . | . . . . Average Backups 3 | 3 4 4 3 Power 1 | . . 1 2 Propulsion . | 1 . . . Utility . | . . . . Weapon 1 | 2 2 3 1 Tool/Special . | . . . . Unused Backups 11 | 3 4 . 4 Power 3 | . . . 3 Propulsion 4 | 3 1 . . Utility . | . . . . Weapon 4 | . 3 . 1 Tool/Special . | . . . . Average Slot Usage (%) 81 | . 100 93 74 Engine 7 | . 14 11 5 Treads 8 | . 24 22 2 Leg 2 | . . . 4 Flight 1 | . . . 2 Device 8 | . 14 11 6 Storage 18 | . 1 21 22 Processor 11 | . 12 11 11 Energy Gun 16 | . 13 . 19 Launcher 5 | . 14 16 1 Peak Build Rating 11 | 7 9 11 9 Average Rating 7 | 5 8 10 6 On Entrance 6 | . 7 9 9 Avg Prop Armor Cover (%) . | . . . . Naked Turns . | . . . . Heaviest Build 96 | 11 14 96 92 Greatest Support 40 | 20 40 40 40 Greatest Overweight (x) 29 | . 1 2 29 Average Overweight (x) 4 | . . 1 12 Largest Inventory Capacity 25 | 5 5 25 25 Average Capacity 20 | 5 5 22 25 Most Carried 8 | 5 5 5 8 Average Carried 3 | 3 4 4 3 Final Capacity 25 | 5 5 25 25 Final Carried 7 | 5 5 4 7 Class Distribution -------------------- 100% | Mutant Dominant Class ---------------- Mutant | -10/Materials Mutant | -9/Materials Mutant | -9/Mines Resources | -11 -10 -9 -9 ----------- Run | Yrd Mat Mat Min Matter Collected 794 | 361 63 46 324 Remotely . | . . . . Salvage Created 1525 | 120 426 541 438 Parts 103 | 13 23 39 28 Haulers Intercepted . | . . . . Recyclers Shooed 2 | . 2 . . Parts Field Recycled . | . . . . Retrieved Matter . | . . . . Parts Self-Destructed . | . . . . Prevented . | . . . . Parts Restored . | . . . . Kills | -11 -10 -9 -9 ------- Run | Yrd Mat Mat Min Combat Hostiles Destroyed 23 | 1 5 9 8 Guns 12 | 1 5 . 6 AOE 10 | . . 8 2 Classes Destroyed 8 | 3 3 2 . Worker 6 | 1 2 . 3 Builder 4 | . . 3 1 Tunneler 4 | 3 1 . . Recycler 4 | . 2 1 1 Watcher 2 | . 2 . . Swarmer 6 | . 3 . 3 Grunt 15 | 1 2 7 5 Sentry 2 | . . 2 . Best Kill Streak 7 | 2 7 6 4 Combat Bots Only 4 | 1 3 4 3 Max Kills in Single Turn 2 | 1 2 2 2 Gunslinging 1 | . 1 . . Exploded 2 | . . 2 1 Melee . | . . . . Uniques/NPCs Destroyed . | . . . . Combat | -11 -10 -9 -9 -------- Run | Yrd Mat Mat Min Hostile Shots Fired 117 | 1 23 37 56 Missed 37 | 1 12 11 13 Hits 80 | . 11 26 43 Projectile 80 | . 11 26 43 AOE 1 | . . . 1 Damage Taken 1261 | . 134 523 604 Core 468 | . 34 119 315 Absorbed by Shields . | . . . . Core Remaining (%) 93 | 100 86 . . Volleys Fired 94 | 16 42 15 21 Largest 2 | 2 2 2 2 Hottest 200 | 200 100 66 100 Shots Fired 176 | 32 84 21 39 Gun 126 | 20 76 . 30 Cannon . | . . . . Launcher 38 | . 8 21 9 Special 12 | 12 . . . Kinetic . | . . . . Thermal 128 | 22 76 . 30 Explosive . | . . . . Electromagnetic 48 | 10 8 21 9 Robot Hit Streak 8 | 7 8 2 7 Robot Miss Streak 5 | 2 5 2 3 Penetration Max . | . . . . Secondary Targets 2 | . 2 . . Max Gunslinging Chain 1 | . 1 . . Shots Hit Robots 86 | 13 42 8 23 Core Hits 58 | 5 18 16 19 Critical Kills . | . . . . Critical Parts Destroyed . | . . . . Critical Strikes 3 | 2 1 . . Burn 3 | 2 1 . . Melee Attacks . | . . . . Impact . | . . . . Slashing . | . . . . Piercing . | . . . . Sneak Attacks . | . . . . Combat Hostiles . | . . . . Follow-up Attacks . | . . . . Damage Inflicted 2163 | 169 627 736 631 Guns 869 | 169 475 . 225 Cannons . | . . . . Explosions 1288 | . 152 733 403 Melee . | . . . . Ramming 6 | . . 3 3 Kinetic . | . . . . Thermal 917 | 63 475 50 329 Explosive . | . . . . Electromagnetic 1240 | 106 152 683 299 Impact . | . . . . Slashing . | . . . . Piercing . | . . . . Highest Corruption 3 | . . 3 3 Average Corruption 2 | . . 1 3 Corruption Purged . | . . . . Corruption Blocked . | . . . . Effects 71 | . . 8 63 Message Errors 17 | . . 1 16 Matter Fused 12 | . . 2 10 Heat Flow Errors 9 | . . 1 8 Energy Discharges 16 | . . 1 15 Parts Fused 1 | . . . 1 Data Loss (minor) 7 | . . 2 5 Data Loss (major) 1 | . . . 1 Misfires 6 | . . . 6 Alerts 2 | . . 1 1 Overload Shots . | . . . . Overflow Damage 44 | . 12 26 6 Projectiles . | . . . . Explosions 44 | . 12 26 6 Melee . | . . . . Knockbacks . | . . . . Impact . | . . . . Kinetic . | . . . . Secondary . | . . . . Self-Inflicted Damage 279 | . . 195 84 Shots 21 | . . 16 5 Rammed 2 | . . . 2 Targets Rammed 4 | . . 1 3 Kicked 1 | . . . 1 Crushed 1 | . . 1 . Highest Temperature 285 | 100 129 161 285 Average Temperature 59 | 38 36 70 96 Received Heat Transfer 396 | . 63 159 174 Siege Activations . | . . . . Martial Activations . | . . . . Shielding Activations . | . . . . Robots Disrupted . | . . . . Combat Hostiles . | . . . . Robots Corrupted 1 | . . 1 . Combat Hostiles 1 | . . 1 . Parts Fried 5 | . 1 4 . Impact Corruptions . | . . . . Robots Melted . | . . . . Combat Hostiles . | . . . . Parts Melted 2 | . 1 . 1 Heat Transferred 2829 | 333 1480 150 866 Parts Sabotaged . | . . . . Parts Stolen . | . . . . Parts Stripped . | . . . . Power Chain Reactions 9 | . 1 6 2 Alert | -11 -10 -9 -9 ------- Run | Yrd Mat Mat Min Maximum Alert Level . | . . . . Low Security (%) 100 | 100 100 100 100 Level 1 . | . . . . Level 2 . | . . . . Level 3 . | . . . . Level 4 . | . . . . Level 5 . | . . . . High Security . | . . . . Max Security . | . . . . Peak Influence 171 | 20 82 171 67 Initial 58 | . . . 58 Average 20 | 2 14 83 13 Influence Increases 819 | 40 213 340 226 Destroy 0b10 Robot/C 460 | 20 100 180 160 Destroy 0b10 Robot/NC 100 | 20 35 20 25 Destroy Leader 104 | . 24 50 30 Successful Hack 28 | . 21 7 . Disable Machine 75 | . 30 45 . Destroy Structure 37 | . 3 23 11 Lose Combat Pursuer 15 | . . 15 . Influence Decreases 819 | 40 213 189 377 Entered New Map 93 | . . . 93 Time Decay 676 | 40 213 179 244 Lost Part 50 | . . 10 40 Squads Dispatched 3 | . 1 2 . Investigation 2 | . . 2 . Extermination . | . . . . Reinforcement 1 | . 1 . . Assault . | . . . . Garrison . | . . . . Intercept . | . . . . Searches Triggered . | . . . . Construction Impeded . | . . . . Haulers Reinforced . | . . . . Active Scanning Responses . | . . . . Cargo Convoy Interrupts . | . . . . Stealth | -11 -10 -9 -9 --------- Run | Yrd Mat Mat Min Distress Signals . | . . . . Communications Jammed . | . . . . Distress Signals . | . . . . Times Spotted 36 | 1 11 12 12 Peak Tracking Total 13 | 1 3 4 13 Tactical Retreats 2 | . . 1 1 Traps | -11 -10 -9 -9 ------- Run | Yrd Mat Mat Min Traps Triggered 1 | . . 1 . Indirectly . | . . . . Trap Hack Attempts . | . . . . Triggered . | . . . . Disarmed . | . . . . Reprogrammed . | . . . . Reused . | . . . . Traps Extracted . | . . . . Installed . | . . . . Triggered . | . . . . Machines | -11 -10 -9 -9 ---------- Run | Yrd Mat Mat Min Machines Disabled 5 | . 2 3 . Max in Single Turn 1 | . 1 1 . Machines Repaired . | . . . . Machines Dismantled . | . . . . Machines Sabotaged . | . . . . Overloaded Fab Kills . | . . . . Hacking | -11 -10 -9 -9 --------- Run | Yrd Mat Mat Min Machines Accessed 8 | . 6 1 1 Terminals 6 | . 5 1 . Fabricators . | . . . . Repair Stations . | . . . . Recycling Units 1 | . 1 . . Scanalyzers . | . . . . Garrison Access . | . . . . Total Hacks 17 | . 13 3 1 Successful 12 | . 8 3 1 Failed 5 | . 5 . . Catastrophic 1 | . 1 . . Database Lockouts . | . . . . Manual 1 | . 1 . . Terminals 12 | . 9 3 . Fabricators . | . . . . Repair Stations . | . . . . Recycling Units 4 | . 4 . . Scanalyzers . | . . . . Garrison Access . | . . . . Terminal Hacks 9 | . 5 3 1 Record 5 | . 2 3 . Open Door 1 | . . . 1 Alert Level 1 | . 1 . . Locate Traps 1 | . 1 . . Zone Layout 1 | . 1 . . Fabricator Hacks . | . . . . Repair Station Hacks . | . . . . Recycling Unit Hacks 3 | . 3 . . Process 1 | . 1 . . Report Inventory 1 | . 1 . . Retrieve Matter 1 | . 1 . . Scanalyzer . | . . . . Garrison Access Hacks . | . . . . Unauthorized Hacks . | . . . . Terminals . | . . . . Fabricators . | . . . . Repair Stations . | . . . . Recycling Units . | . . . . Scanalyzers . | . . . . Garrison Access . | . . . . Data Cores Recovered . | . . . . Used . | . . . . Hacking Detections 3 | . 2 1 . Full Trace Events 1 | . . 1 . Feedback Events . | . . . . Feedback Blocked . | . . . . Robot Schematics Acquired . | . . . . Robots Built . | . . . . Authchips . | . . . . Time . | . . . . Total Robot Build Rating . | . . . . Part Schematics Acquired . | . . . . Parts Built . | . . . . Authchips . | . . . . Time . | . . . . Total Part Build Rating . | . . . . Part Studies Acquired . | . . . . Parts Repaired . | . . . . Time . | . . . . Parts Recycled . | . . . . Recycled Matter 175 | . 175 . . Retrieved Matter 235 | . 235 . . Retrieved Components . | . . . . Parts Scanalyzed . | . . . . Part Schematics Acquired . | . . . . Parts Damaged . | . . . . Bothacking | -11 -10 -9 -9 ------------ Run | Yrd Mat Mat Min Used RIF Installer . | . . . . Robots Hacked . | . . . . Non-combat . | . . . . Combat . | . . . . Robot Hacks Applied . | . . . . Relay Couplers Released . | . . . . Fabnet Peak Effective % . | . . . . Robots Rewired . | . . . . Allies Hacked . | . . . . Hacks Repelled . | . . . . Allies | -11 -10 -9 -9 -------- Run | Yrd Mat Mat Min Total Allies . | . . . . Largest Group . | . . . . Highest-Rated Group . | . . . . Highest-Rated Ally . | . . . . Total Orders . | . . . . Ally Attacks . | . . . . Total Damage . | . . . . Kills . | . . . . Allies Corrupted . | . . . . Allies Melted . | . . . . Intel | -11 -10 -9 -9 ------- Run | Yrd Mat Mat Min Active Infowar (turns) 4891 | . 794 575 3522 T.N.C. 4891 | . 794 575 3522 Robot Analysis Total . | . . . . Derelict Logs Recovered . | . . . . Drone Launches . | . . . . Drone Recoveries . | . . . . Exploration | -11 -10 -9 -9 ------------- Run | Yrd Mat Mat Min Turns Passed 5275 | 276 902 575 3522 Spaces Moved 1314 | 222 489 184 419 Core 138 | 17 . . 121 Treads 698 | . 420 184 94 Legs 165 | . . . 165 Wheels 272 | 205 67 . . Hover . | . . . . Flight 41 | . 2 . 39 Fastest Speed 50 | 50 80 160 320 Average Speed 369 | 77 148 288 816 Slowest Speed 1800 | 80 160 320 1800 Overloaded Moves . | . . . . Propulsion Burnouts . | . . . . Robots Hopped . | . . . . Potential Cave-ins . | . . . . Cave-ins Triggered . | . . . . Exploration Rate (%) 34 | 7 67 15 49 Regions Visited 3 Branch Regions 1 Pre-discovered Areas . | . . . . Known Exits Taken . | . . . . Unknown Exits Taken 3 | 1 1 1 . Scrap Searched 1 | . . . 1 Spaces Dug 9 | 9 . . . Terrain Destroyed 44 | 10 2 21 11 Melee . | . . . . Projectile 10 | 10 . . . AOE 34 | . 2 21 11 Terrain Rammed . | . . . . Walls Destroyed . | . . . . Machines Disabled . | . . . . Actions | -11 -10 -9 -9 --------- Run | Yrd Mat Mat Min Total 1520 | 269 584 206 461 Wait . | . . . . Move 1311 | 221 488 183 419 Hop . | . . . . Pick Up 46 | 16 20 2 8 Fast Attach 1 | . . . 1 Attach 14 | 7 . 2 5 Detach . | . . . . Swap 25 | 5 14 2 4 Drop 25 | 4 20 1 . Fire 94 | 16 42 15 21 Melee . | . . . . Ram 1 | . . . 1 Kick 1 | . . . 1 Crush 2 | . . 1 1 Escape Stasis . | . . . . Rewire . | . . . . Trap . | . . . . Miscellaneous . | . . . . Route ------- -11/Scrapyard -10/Materials (discovered 4 exits: *Mat x2 / [*Min] / [*Sub]) -9/Materials -9/Mines (discovered 1 exit: [*Mat]) History --------- Turn | Location | Event 2 | -11/Scrapyard | Met Revision 17 62 | -11/Scrapyard | Discovered new exit (range 8) 277 | -11/Scrapyard | Entered Materials 324 | -10/Materials | Build established: Mutant 427 | -10/Materials | Discovered new exit (range 15) 753 | -10/Materials | Discovered new exit (range 16) 798 | -10/Materials | Discovered new exit (range 6) 1140 | -10/Materials | Discovered new exit (range 10) 1179 | -10/Materials | Entered another Materials area 1179 | -9/Materials | Evolved 2 slots: Utility x2 1628 | -9/Materials | Discovered new exit (range 15) 1754 | -9/Materials | Entered Mines 2089 | -9/Mines | Core integrity fell below 50% 2109 | -9/Mines | Lost 4 parts (1p2n1w) 2691 | -9/Mines | Found the Drone Emporium 3693 | -9/Mines | Core integrity fell below 20% 4736 | -9/Mines | Discovered new exit (range 9) 5241 | -9/Mines | Assembled infested the area 5276 | -9/Mines | Destroyed by D-53 Grenadier with Mini Grenade Launcher Last Messages --------------- Experienced players can activate Tactical HUD mode in the options menu, or press Ctrl-F7, for more detailed HUD info. 05112_ System corrupted: Energy discharge (-48). 05132_ Acquired 4 matter. 05162_ System corrupted: Energy discharge (-41). 05196_ Acquired 1 matter. 05221_ System corrupted: Energy discharge (-48). 05241_ ALERT: Infestation in the mines, dispatching Demolisher response squad. 05241_ T-07 Excavator destroyed. 05244_ Searching scrap... 05244_ Found Weapon Shielding. 05244_ Found Med. Storage Unit. 05244_ Found 30 Matter. 05252_ Acquired Weapon Shielding. 05258_ as-82528 powers down. 05264_ Acquired 10 matter. [Achievement: Slippery One] 05276_ C-45 Heavy ARC bursts open, deploying its payload. 05276_ D-53 Grenadier unfolds itself. Map ----- +----------------------------------------------------+ | ?????????????????????????????????????????????????? | | ?????????????????????????????????????????????????? | | ?????????????????????????????????????????????????? | | ?????????????????????????????????????????????????? | | ?????????????????????????????????????????????????? | | ?????????????????????????????????????????????????? | | ?????????????????????????????????????????????????? | | ?????????????????????????????????????????????????? | | ????????????????????????#????????????????????????? | | ???????????????????????? ????????????????????????? | | ???????????????????????? ????????????????????????? | | ???????????????????????? ????????????????????????? | | ???????????????????????? ????????????????????????? | | ????????????????????????%#???????????????????????? | | ???????????????????????? ###????????????????????? | | ???????????????????????? #????????????????????? | | ???????????????????????? a ????????????????????? | | ???????????????????????? ?????????????????????? | | ???????????????????????? ?????????????????????? | | ????????????????????????# #?????????????????????? | | ????????????????????????# #?????????????????????? | | ####????????????????????# #?????????????????????? | | #????????????????????# #?????????????????????? | | ## #????????###??##?????# #?????????????????????? | | ?# #????????# ??? ?????# #?????????????????????? | | ## ##???????# #???# ????#@!#?????????????????????? | | # ##??????# #???? #??## ### #?????????????????? | | ######## #????? ?# #?????????????????? | | #?????# ?# #####?????????????????? | | ######## #?????# ##d%##?????????????????????? | | #?????## ##????# d ########??????????????? | | #????## ##???# %#???????????#### | | # ##????# ##??## [ ###%#????????### # | | #####?????# ###### #?# #???????## | | ??????????# #### [ ##?# #??????## | | ??????###?# ### ##??# #?????## | | ?????##""## % ##???# #??#### """ | | ?????#" #X [ ##????# #### """ | | ?????#" ######?????# """ | | ?????#"! # ##?????????##### # # """ | | ?????#" # # ##????????????## ### ## | | ?????##""## # #?????????????###### #?#### | | ??????###?### #????????######## #????? | | ???????????# #?####???# ####????? | | #?????????## #### ##??# ###### #???##### | | #?????##### #######?# #### #????# #?### | | #????## ##???????# #????# ### / | | ##??## ####????????# ##### #???## / | | #?## ####??????????## ##??# #???# # | | ### ##???#######??## #### #???# ##### | +----------------------------------------------------+ Best States ------------- Heat Dissipation 38 Energy Generation 10 Energy Capacity 250 Matter Stores 400 Matter Capacity 450 Sight Range 16 Terrain Scan Density 10 Weapon Shielding 33 Evasion (%) 50 Recoil Reduction 2 Item Schematics ----------------- None Robot Schematics ------------------ None Fabricated ------------ Nothing Repaired ---------- Nothing Studied --------- None Alien Tech Used ----------------- None Achievements -------------- One Hack Too Far Power Corrupts Slippery One Challenges ------------ None Game ------ Seed ForceCooledMiniperforator Manual? 0 Play Time 00:40:17 Cumulative 1.5 hours Start 2026.02.17 @ 19:03:32 End 2026.02.18 @ 07:01:56 Sessions 7 Manual Loads 0 Difficulty Rogue Special Mode None Game No. 3 Rogue 3 Adventurer 0 Explorer 0 Win Type - Total 0 Types 0/0/0/0/0/0/0/0/0/0 Lore% 0 Gallery% 2 Achievement% 3 Wizard Run 0 Options --------- Layout 0 ASCII 0 Keyboard 0 Movement Arrows Keybinds 0 Fullscreen 0 Font 18/SmallcapsGlow Map View 66x50 Zoom Use 0% Tactical HUD 1 Map Filters NONE Filters NONE Steam 1 RUN: 9f1923ca-5214-4b24-95cc-cb227056d082